fUSD/lending_fUSD_20250109
["ID","MTS","AMOUNT","RATE_DAILY","PERIOD"]
[348299673,1736437840029,-500.0,9.975e-05,2]
[348299675,1736437840038,-500.0,9.975e-05,2]
[348299677,1736437840048,-500.0,9.975e-05,2]
[348299679,1736437840057,-500.0,9.975e-05,2]
[348299681,1736437840068,-500.0,9.975e-05,2]
[348299682,1736437840078,-500.0,9.975e-05,2]
[348299684,1736437840089,-500.0,9.975e-05,2]
[348299686,1736437840098,-502.03997264,9.975e-05,2]
[348299688,1736437840107,-582.36,9.975e-05,2]
[348299690,1736437840116,-500.0,9.975e-05,2]
[348299692,1736437840125,-500.0,9.975e-05,2]
[348299694,1736437840134,-500.0,9.975e-05,2]
[348299696,1736437840144,-501.50299159,9.975e-05,2]
[348299698,1736437840154,-500.0,9.975e-05,2]
[348299700,1736437840164,-500.0,9.975e-05,2]
[348299702,1736437840173,-500.0,9.975e-05,2]
[348299703,1736437840183,-500.0,9.975e-05,2]
[348299704,1736437840193,-505.67442372,9.975e-05,2]
[348299705,1736437840203,-500.0,9.975e-05,2]
[348299706,1736437840212,-500.0,9.975e-05,2]
[348299707,1736437840221,-500.0,9.975e-05,2]
[348299708,1736437840230,-500.0,9.975e-05,2]
[348299709,1736437840240,-500.0,9.975e-05,2]
[348299711,1736437840249,-500.0,9.975e-05,2]
[348299713,1736437840258,-500.0,9.975e-05,2]
[348299715,1736437840267,-500.0,9.975e-05,2]
[348299717,1736437840276,-500.0,9.975e-05,2]
[348299719,1736437840285,-500.0,9.975e-05,2]
[348299721,1736437840295,-500.0,9.975e-05,2]
[348299723,1736437840304,-500.0,9.975e-05,2]
[348299725,1736437840315,-500.0,9.975e-05,2]
[348299727,1736437840324,-500.0,9.975e-05,2]
[348299728,1736437840336,-500.0,9.975e-05,2]
[348299731,1736437840345,-500.0,9.975e-05,2]
[348299732,1736437840355,-500.0,9.975e-05,2]
[348299734,1736437840364,-500.0,9.975e-05,2]
[348299735,1736437840374,-500.0,9.975e-05,2]
[348299736,1736437840383,-500.0,9.975e-05,2]
[348299737,1736437840392,-500.0,9.975e-05,2]
[348299738,1736437840402,-500.0,9.975e-05,2]
[348299739,1736437840411,-500.0,9.975e-05,2]
[348299740,1736437840422,-500.0,9.975e-05,2]
[348299741,1736437840432,-500.0,9.975e-05,2]
[348299742,1736437840442,-500.0,9.975e-05,2]
[348299743,1736437840451,-500.0,9.975e-05,2]
[348299744,1736437840460,-500.0,9.975e-05,2]
[348299745,1736437840470,-500.0,9.975e-05,2]
[348299746,1736437840479,-553.55,9.975e-05,2]
[348299747,1736437840488,-500.0,9.975e-05,2]
[348299748,1736437840498,-1010.28,9.975e-05,2]
[348299749,1736437840507,-500.0,9.975e-05,2]
[348299750,1736437840516,-500.0,9.975e-05,2]
[348299751,1736437840525,-527.22,9.975e-05,2]
[348299752,1736437840535,-500.0,9.975e-05,2]
[348299753,1736437840544,-500.14,9.975e-05,2]
[348299754,1736437840553,-500.0,9.975e-05,2]
[348299755,1736437840563,-500.0,9.975e-05,2]
[348299756,1736437840575,-500.0,9.975e-05,2]
[348299757,1736437840584,-500.0,9.975e-05,2]
[348299758,1736437840594,-500.0,9.975e-05,2]
[348299759,1736437840603,-500.0,9.975e-05,2]
[348299760,1736437840612,-500.0,9.975e-05,2]
[348299761,1736437840622,-500.0,9.975e-05,2]
[348299762,1736437840631,-593.97,9.975e-05,2]
[348299763,1736437840640,-1195.03,9.975e-05,2]
[348299764,1736437840649,-500.0,9.975e-05,2]
[348299765,1736437840658,-500.0,9.975e-05,2]
[348299766,1736437840670,-556.8,9.975e-05,2]
[348299767,1736437840679,-500.0,9.975e-05,2]
[348299768,1736437840688,-1347.78,9.975e-05,2]
[348299769,1736437840698,-500.0,9.975e-05,2]
[348299770,1736437840707,-500.0,9.975e-05,2]
[348299771,1736437840716,-500.0,9.975e-05,2]
[348299772,1736437840725,-500.0,9.975e-05,2]
[348299773,1736437840734,-500.0,9.975e-05,2]
[348299774,1736437840743,-729.39,9.975e-05,2]
[348299775,1736437840753,-500.0,9.975e-05,2]
[348299776,1736437840762,-502.57755317,9.975e-05,2]
[348299777,1736437840772,-500.0,9.975e-05,2]
[348299778,1736437840781,-500.0,9.975e-05,2]
[348299779,1736437840790,-1068.63,9.975e-05,2]
[348299780,1736437840799,-500.0,9.975e-05,2]
[348299781,1736437840808,-500.0,9.975e-05,2]
[348299782,1736437840819,-500.0,9.975e-05,2]
[348299783,1736437840829,-500.0,9.975e-05,2]
[348299784,1736437840838,-500.0,9.975e-05,2]
[348299785,1736437840847,-500.0,9.975e-05,2]
[348299786,1736437840857,-500.0,9.975e-05,2]
[348299787,1736437840866,-500.0,9.975e-05,2]
[348299788,1736437840875,-500.0,9.975e-05,2]
[348299789,1736437840884,-500.0,9.975e-05,2]
[348299790,1736437840893,-500.0,9.975e-05,2]
[348299791,1736437840903,-500.0,9.975e-05,2]
[348299792,1736437840912,-670.07,9.975e-05,2]
[348299793,1736437840921,-500.0,9.975e-05,2]
[348299794,1736437840931,-3588.74,9.975e-05,2]
[348299795,1736437840940,-500.0,9.975e-05,2]
[348299796,1736437840949,-500.0,9.975e-05,2]
[348299797,1736437840958,-500.0,9.975e-05,2]
[348299798,1736437840968,-500.0,9.975e-05,2]
[348299799,1736437840977,-500.0,9.975e-05,2]
[348299800,1736437840986,-500.0,9.975e-05,2]
[348299801,1736437840995,-599.38,9.975e-05,2]
[348299802,1736437841004,-500.0,9.975e-05,2]
[348299803,1736437841013,-500.0,9.975e-05,2]
[348299804,1736437841023,-500.0,9.975e-05,2]
[348299805,1736437841032,-500.0,9.975e-05,2]
[348299806,1736437841042,-500.0,9.975e-05,2]
[348299807,1736437841051,-500.0,9.975e-05,2]
[348299808,1736437841060,-929.6,9.975e-05,2]
[348299809,1736437841072,-500.0,9.975e-05,2]
[348299810,1736437841081,-500.0,9.975e-05,2]
[348299811,1736437841091,-500.0,9.975e-05,2]
[348299813,1736437841101,-500.0,9.975e-05,2]
[348299815,1736437841110,-500.0,9.975e-05,2]
[348299817,1736437841119,-500.0,9.975e-05,2]
[348299819,1736437841128,-500.56104511,9.975e-05,2]
[348299821,1736437841138,-500.0,9.975e-05,2]
[348299823,1736437841147,-2939.15,9.975e-05,2]
[348299825,1736437841156,-500.0,9.975e-05,2]
[348299827,1736437841165,-500.0,9.975e-05,2]
[348299829,1736437841174,-500.0,9.975e-05,2]
[348299831,1736437841183,-500.0,9.975e-05,2]
[348299833,1736437841192,-500.0,9.975e-05,2]
[348299835,1736437841201,-500.0,9.975e-05,2]
[348299837,1736437841210,-501.55053588,9.975e-05,2]
[348299839,1736437841219,-500.0,9.975e-05,2]
[348299841,1736437841228,-500.0,9.975e-05,2]
[348299843,1736437841237,-500.0,9.975e-05,2]
[348299845,1736437841246,-500.0,9.975e-05,2]
[348299847,1736437841255,-500.0,9.975e-05,2]
[348299848,1736437841264,-500.0,9.975e-05,2]
[348299850,1736437841273,-500.0,9.975e-05,2]
[348299852,1736437841282,-7581.06,9.975e-05,2]
[348299854,1736437841291,-500.0,9.975e-05,2]
[348299856,1736437841300,-500.0,9.975e-05,2]
[348299859,1736437841310,-502.63539076,9.975e-05,2]
[348299861,1736437841320,-500.0,9.975e-05,2]
[348299863,1736437841330,-500.0,9.975e-05,2]
[348299864,1736437841343,-500.0,9.975e-05,2]
[348299867,1736437841352,-500.0,9.975e-05,2]
[348299869,1736437841361,-500.0,9.975e-05,2]
[348299871,1736437841371,-500.0,9.975e-05,2]
[348299872,1736437841380,-500.0,9.975e-05,2]
[348299874,1736437841390,-500.0,9.975e-05,2]
[348299876,1736437841400,-633.05,9.975e-05,2]
[348299878,1736437841410,-500.0,9.975e-05,2]
[348299880,1736437841420,-511.65,9.975e-05,2]
[348299882,1736437841430,-500.0,9.975e-05,2]
[348299884,1736437841439,-500.0,9.975e-05,2]
[348299886,1736437841449,-500.0,9.975e-05,2]
[348299888,1736437841458,-5133.65,9.975e-05,2]
[348299890,1736437841468,-500.0,9.975e-05,2]
[348299892,1736437841478,-500.0,9.975e-05,2]
[348299894,1736437841487,-500.0,9.975e-05,2]
[348299896,1736437841496,-500.0,9.975e-05,2]
[348299898,1736437841506,-500.0,9.975e-05,2]
[348299900,1736437841515,-815.48,9.975e-05,2]
[348299902,1736437841525,-500.0,9.975e-05,2]
[348299904,1736437841534,-500.0,9.975e-05,2]
[348299906,1736437841543,-1045.99,9.975e-05,2]
[348299908,1736437841550,-500.0,9.975e-05,2]
[348299910,1736437841559,-500.0,9.975e-05,2]
[348299912,1736437841571,-500.0,9.975e-05,2]
[348299914,1736437841579,-500.0,9.975e-05,2]
[348299916,1736437841589,-1088.03,9.975e-05,2]
[348299918,1736437841598,-249.037796,9.975e-05,2]
[348299920,1736437841607,-500.0,9.975e-05,2]
[348299922,1736437841616,-500.0,9.975e-05,2]
[348299923,1736437841625,-500.0,9.975e-05,2]
[348299925,1736437841635,-500.0,9.975e-05,2]
[348299927,1736437841644,-500.0,9.975e-05,2]
[348299929,1736437841653,-500.0,9.975e-05,2]
[348299931,1736437841662,-500.0,9.975e-05,2]
[348299933,1736437841671,-500.0,9.975e-05,2]
[348299935,1736437841681,-500.0,9.975e-05,2]
[348299937,1736437841691,-500.0,9.975e-05,2]
[348299939,1736437841701,-500.0,9.975e-05,2]
[348299941,1736437841710,-500.0,9.975e-05,2]
[348299943,1736437841720,-500.0,9.975e-05,2]
[348299946,1736437841731,-500.0,9.975e-05,2]
[348299948,1736437841740,-2743.16,9.975e-05,2]
[348299950,1736437841750,-500.0,9.975e-05,2]
[348299952,1736437841759,-520.72,9.975e-05,2]
[348299954,1736437841769,-500.0,9.975e-05,2]
[348299956,1736437841778,-567.32949554,9.975e-05,2]
[348299958,1736437841788,-500.0,9.975e-05,2]
[348299960,1736437841798,-500.0,9.975e-05,2]
[348299962,1736437841807,-483.55216879,9.975e-05,2]
[348299963,1736437841819,-500.0,9.975e-05,2]
[348299965,1736437841828,-500.0,9.975e-05,2]
[348299967,1736437841838,-500.0,9.975e-05,2]
[348299970,1736437841848,-554.91,9.975e-05,2]
[348299972,1736437841858,-500.0,9.975e-05,2]
[348299974,1736437841867,-500.0,9.975e-05,2]
[348299976,1736437841877,-557.98,9.975e-05,2]
[348299977,1736437841886,-500.0,9.975e-05,2]
[348299979,1736437841896,-500.0,9.975e-05,2]
[348299981,1736437841906,-500.0,9.975e-05,2]
[348299983,1736437841916,-500.0,9.975e-05,2]
[348299985,1736437841926,-756.68,9.975e-05,2]
[348299987,1736437841936,-500.0,9.975e-05,2]
[348299989,1736437841946,-647.05,9.975e-05,2]
[348299991,1736437841956,-500.0,9.975e-05,2]
[348299994,1736437841965,-500.0,9.975e-05,2]
[348299996,1736437841975,-500.0,9.975e-05,2]
[348299997,1736437841984,-6705.8,9.975e-05,2]
[348300000,1736437841996,-500.0,9.975e-05,2]
[348300002,1736437842005,-500.0,9.975e-05,2]
[348300004,1736437842014,-500.0,9.975e-05,2]
[348300005,1736437842023,-500.0,9.975e-05,2]
[348300007,1736437842032,-1391.22,9.975e-05,2]
[348300009,1736437842040,-500.0,9.975e-05,2]
[348300011,1736437842049,-500.0,9.975e-05,2]
[348300013,1736437842058,-788.5,9.975e-05,2]
[348300015,1736437842069,-1431.7,9.975e-05,2]
[348300017,1736437842078,-500.0,9.975e-05,2]
[348300019,1736437842087,-587.1611623,9.975e-05,2]
[348300021,1736437842096,-500.0,9.975e-05,2]
[348300023,1736437842105,-500.0,9.975e-05,2]
[348300025,1736437842114,-500.0,9.975e-05,2]
[348300027,1736437842123,-500.0,9.975e-05,2]
[348300029,1736437842132,-500.0,9.975e-05,2]
[348300031,1736437842141,-500.0,9.975e-05,2]
[348300033,1736437842150,-500.0,9.975e-05,2]
[348300035,1736437842159,-500.0,9.975e-05,2]
[348300037,1736437842167,-500.0,9.975e-05,2]
[348300039,1736437842177,-500.0,9.975e-05,2]
[348300041,1736437842186,-500.0,9.975e-05,2]
[348300043,1736437842195,-1868.19,9.975e-05,2]
[348300045,1736437842204,-500.0,9.975e-05,2]
[348300047,1736437842213,-500.0,9.975e-05,2]
[348300049,1736437842222,-500.0,9.975e-05,2]
[348300051,1736437842230,-500.0,9.975e-05,2]
[348300053,1736437842237,-500.0,9.975e-05,2]
[348300055,1736437842245,-500.0,9.975e-05,2]
[348300057,1736437842254,-500.0,9.975e-05,2]
[348300059,1736437842263,-500.0,9.975e-05,2]
[348300061,1736437842272,-1186.43,9.975e-05,2]
[348300063,1736437842281,-500.0,9.975e-05,2]
[348300065,1736437842290,-500.0,9.975e-05,2]
[348300067,1736437842299,-151.0,9.975e-05,2]
[348300069,1736437842308,-500.0,9.975e-05,2]
[348300071,1736437842318,-151.0,9.975e-05,2]
[348300073,1736437842327,-500.0,9.975e-05,2]
[348300075,1736437842338,-500.0,9.975e-05,2]
[348300077,1736437842349,-202.906014,9.975e-05,2]
[348300079,1736437842358,-304.80497339,9.975e-05,2]
[348300081,1736437842367,-500.0,9.975e-05,2]
[348300083,1736437842377,-500.0,9.975e-05,2]
[348300085,1736437842386,-1612.66610083,9.976e-05,2]
[348300087,1736437842396,-1649.51,9.976e-05,2]
[348300089,1736437842406,-513.19,9.976e-05,2]
[348300091,1736437842415,-1780.89,9.976e-05,2]
[348300093,1736437842426,-1550.26,9.976e-05,2]
[348300095,1736437842435,-1396.99,9.976e-05,2]
[348300097,1736437842444,-500.0,9.976e-05,2]
[348300099,1736437842453,-500.0,9.976e-05,2]
[348300101,1736437842463,-500.0,9.976e-05,2]
[348300102,1736437842472,-3698.01,9.976e-05,2]
[348300103,1736437842482,-500.0,9.976e-05,2]
[348300104,1736437842491,-500.0,9.976e-05,2]
[348300105,1736437842501,-1665.8,9.976e-05,2]
[348300106,1736437842511,-500.0,9.976e-05,2]
[348300107,1736437842520,-500.0,9.976e-05,2]
[348300108,1736437842529,-500.0,9.976e-05,2]
[348300109,1736437842538,-500.0,9.976e-05,2]
[348300110,1736437842548,-500.0,9.976e-05,2]
[348300111,1736437842556,-613.86,9.976e-05,2]
[348300113,1736437842568,-500.0,9.976e-05,2]
[348300114,1736437842578,-1491.4,9.976e-05,2]
[348300117,1736437842588,-1277.2,9.976e-05,2]
[348300119,1736437842597,-1789.15,9.976e-05,2]
[348300121,1736437842607,-500.0,9.976e-05,2]
[348300123,1736437842617,-2108.67,9.976e-05,2]
[348300125,1736437842626,-673.04,9.976e-05,2]
[348300146,1736437842824,-500.0,9.976e-05,2]
[348300148,1736437842834,-500.0,9.976e-05,2]
[348300150,1736437842843,-500.0,9.976e-05,2]
[348300152,1736437842851,-725.9,9.976e-05,2]
[348300154,1736437842862,-500.0,9.976e-05,2]
[348300156,1736437842870,-570.47,9.976e-05,2]
[348300158,1736437842879,-500.0,9.976e-05,2]
[348300160,1736437842889,-561.28,9.976e-05,2]
[348300162,1736437842898,-500.0,9.976e-05,2]
[348300164,1736437842907,-1653.74,9.976e-05,2]
[348300166,1736437842916,-500.0,9.976e-05,2]
[348300168,1736437842925,-500.0,9.976e-05,2]
[348300170,1736437842934,-1078.5,9.976e-05,2]
[348300172,1736437842943,-579.75,9.976e-05,2]
[348300173,1736437842951,-1087.59,9.976e-05,2]
[348300175,1736437842961,-687.09,9.976e-05,2]
[348300179,1736437842971,-500.0,9.976e-05,2]
[348300183,1736437842980,-1108.35,9.976e-05,2]
[348300186,1736437842990,-500.0,9.976e-05,2]
[348300190,1736437843001,-500.0,9.976e-05,2]
[348300194,1736437843011,-500.0,9.976e-05,2]
[348300196,1736437843021,-500.0,9.976e-05,2]
[348300198,1736437843030,-500.0,9.976e-05,2]
[348300200,1736437843039,-500.0,9.976e-05,2]
[348300202,1736437843049,-582.38,9.976e-05,2]
[348300204,1736437843059,-600.34,9.976e-05,2]
[348300206,1736437843075,-741.15,9.976e-05,2]
[348300208,1736437843085,-527.95,9.976e-05,2]
[348300210,1736437843095,-1634.74,9.976e-05,2]
[348300211,1736437843104,-796.03,9.976e-05,2]
[348300212,1736437843114,-2845.62,9.976e-05,2]
[348300213,1736437843123,-2165.94,9.976e-05,2]
[348300214,1736437843133,-2935.52,9.976e-05,2]
[348300215,1736437843143,-2370.81,9.976e-05,2]
[348300216,1736437843152,-1765.86,9.976e-05,2]
[348300217,1736437843161,-5410.96,9.976e-05,2]
[348300218,1736437843171,-200.0,9.977e-05,2]
[348300219,1736437843181,-3164.28399501,9.977e-05,2]
[348300220,1736437843191,-5590.41219346,9.978e-05,2]
[348300221,1736437843200,-1483.15662404,9.978e-05,2]
[348300222,1736437843210,-1483.15662404,9.978e-05,2]
[348300223,1736437843220,-1612.66610083,9.979e-05,2]
[348300224,1736437843230,-200.0,9.979e-05,2]
[348300225,1736437843240,-4910.55170426,9.979e-05,2]
[348300226,1736437843249,-200.0,9.98e-05,2]
[348300227,1736437843259,-1483.15662404,9.981e-05,2]
[348300228,1736437843269,-4910.55170426,9.982e-05,2]
[348300229,1736437843280,-5052.94130995,9.982e-05,2]
[348300230,1736437843293,-200.0,9.984e-05,2]
[348300231,1736437843308,-5052.94130995,9.985e-05,2]
[348300232,1736437843320,-5052.94130995,9.985e-05,2]
[348300233,1736437843330,-4910.55170426,9.985e-05,2]
[348300234,1736437843344,-5590.41219346,9.986e-05,2]
[348300235,1736437843353,-150.0,9.987e-05,2]
[348300236,1736437843363,-5052.94130995,9.988e-05,2]
[348300237,1736437843372,-1000.0,9.988e-05,2]
[348300238,1736437843382,-3164.28399501,9.989e-05,2]
[348300239,1736437843392,-5590.41219346,9.99e-05,2]
[348300240,1736437843402,-3164.28399501,9.99e-05,2]
[348300241,1736437843413,-1612.66610083,9.991e-05,2]
[348300242,1736437843422,-5052.94130995,9.992e-05,2]
[348300243,1736437843432,-200.0,9.992e-05,2]
[348300244,1736437843442,-4910.55170426,9.992e-05,2]
[348300245,1736437843452,-200.0,9.993e-05,2]
[348300246,1736437843461,-5590.41219346,9.995e-05,2]
[348300247,1736437843471,-5052.94130995,9.995e-05,2]
[348300248,1736437843481,-1612.66610083,9.995e-05,2]
[348300249,1736437843491,-5590.41219346,9.995e-05,2]
[348300250,1736437843501,-4910.55170426,9.996e-05,2]
[348300251,1736437843511,-3164.28399501,9.996e-05,2]
[348300252,1736437843521,-200.0,9.997e-05,2]
[348300253,1736437843531,-352.63392716,9.999e-05,2]
[348300254,1736437843541,-500.0,9.999e-05,2]
[348300255,1736437843551,-289.29871139,9.999e-05,2]
[348300256,1736437843561,-1612.66610083,9.999e-05,2]
[348300257,1736437843572,-1483.15662404,0.0001,2]
[348300258,1736437843582,-30316.36531998,0.0001,2]
[348300259,1736437843608,-98625.0,0.0001,2]
[348300260,1736437843620,-37095.93090267,0.0001,2]
[348300262,1736437843631,-49340.58423905,0.0001,2]
[348300264,1736437843642,-754.49484522,0.0001,2]
[348300266,1736437843654,-2959.20245429,0.0001,2]
[348300268,1736437843666,-98646.47152751,0.0001,2]
[348300270,1736437843677,-16360.33043809,0.0001,2]
[348300273,1736437843688,-139340.10597724,0.0001,2]
[348300275,1736437843699,-1006.5,0.0001,2]
[348300277,1736437843711,-1878.48944171,0.0001,2]
[348300279,1736437843722,-887.80834405,0.0001,2]
[348300281,1736437843734,-426.27575759,0.0001,2]
[348300283,1736437843745,-982.43337259,0.0001,2]
[348300288,1736437845162,-500.0,9.798e-05,2]
[348300289,1736437845172,-500.0,9.798e-05,2]
[348300290,1736437845181,-500.0,9.798e-05,2]
[348300291,1736437845190,-500.0,9.798e-05,2]
[348300292,1736437845199,-500.0,9.798e-05,2]
[348300293,1736437845208,-500.0,9.799e-05,2]
[348300294,1736437845216,-500.0,9.975e-05,2]
[348300295,1736437845225,-500.0,9.975e-05,2]
[348300296,1736437845234,-500.0,9.975e-05,2]
[348300297,1736437845243,-93981.00000002,0.0001,2]
[348300298,1736437845255,-905.69999991,0.0001,2]
[348300299,1736437845266,-1729.68845471,0.0001,2]
[348300300,1736437845276,-54764.85096357,0.0001,2]
[348300301,1736437845287,-7053.23970044,0.0001,2]
[348300302,1736437845298,-31274.87494545,0.0001,2]
[348300303,1736437845309,-64463.93428212,0.0001,2]
[348300304,1736437845323,-29876.22477152,0.0001,2]
[348300305,1736437845335,-36556.0,0.0001,2]
[348300306,1736437845348,-923.00813186,0.0001,2]
[348300307,1736437845359,-771.95368153,0.0001,2]
[348300308,1736437845370,-470.91773345,0.0001,2]
[348300309,1736437845383,-1011.01,0.0001,2]
[348300310,1736437845395,-1977.52659153,0.0001,2]
[348300311,1736437845407,-493.48146803,0.0001,2]
[348300312,1736437845421,-948.477401,0.0001,2]
[348300313,1736437845432,-4212.71697305,0.0001,2]
[348300314,1736437845444,-986.44546,0.0001,2]
[348300315,1736437845456,-712.42494917,0.0001,2]
[348300316,1736437845469,-3449.635,0.0001,2]
[348300317,1736437845937,-2614.2,9.799e-05,2]
[348300318,1736437845947,-502.21299666,9.973e-05,2]
[348300319,1736437845956,-152.06923266,9.973e-05,2]
[348300320,1736437845966,-500.0,9.975e-05,2]
[348300321,1736437845976,-9715.36020657,0.0001,2]
[348300322,1736437845987,-3029381.9368522,0.0001,2]
[348300323,1736437845997,-335547.65218198,0.0001,2]
[348300324,1736437846007,-52995.30725488,0.0001,2]
[348300325,1736437846017,-571.25193582,0.0001,2]
[348300326,1736437846027,-184.13,0.0001,2]
[348300327,1736437846036,-540.03822789,0.0001,2]
[348300328,1736437846046,-1683.01713079,0.0001,2]
[348300329,1736437846055,-1213.32648499,0.0001,2]
[348300330,1736437846065,-1213.32648493,0.0001,2]
[348300331,1736437846076,-1213.32648493,0.0001,2]
[348300332,1736437846085,-1213.32648493,0.0001,2]
[348300333,1736437846095,-1213.32648493,0.0001,2]
[348300334,1736437846105,-1213.32648493,0.0001,2]
[348300335,1736437846115,-1213.32648493,0.0001,2]
[348300336,1736437846124,-150.0,0.00010007,2]
[348300337,1736437846133,-1213.32648493,0.00010017,2]
[348300338,1736437846143,-150.0,0.00010043,2]
[348300339,1736437846152,-584.23,0.00010072,2]
[348300340,1736437846161,-500.0,0.00010072,2]
[348300341,1736437846171,-500.0,0.00010072,2]
[348300342,1736437846181,-500.0,0.00010072,2]
[348300343,1736437846190,-500.0,0.00010072,2]
[348300344,1736437846200,-516.57,0.00010072,2]
[348300345,1736437846209,-500.0,0.00010072,2]
[348300346,1736437846219,-500.0,0.00010072,2]
[348300347,1736437846229,-500.0,0.00010072,2]
[348300348,1736437846239,-500.0,0.00010072,2]
[348300349,1736437846249,-500.0,0.00010072,2]
[348300350,1736437846258,-500.0,0.00010072,2]
[348300351,1736437846267,-500.0,0.00010072,2]
[348300352,1736437846276,-500.0,0.00010072,2]
[348300353,1736437846285,-500.0,0.00010072,2]
[348300354,1736437846294,-500.0,0.00010072,2]
[348300355,1736437846303,-500.0,0.00010072,2]
[348300356,1736437846312,-500.0,0.00010072,2]
[348300357,1736437846323,-500.0,0.00010072,2]
[348300358,1736437846333,-500.0,0.00010072,2]
[348300359,1736437846345,-500.0,0.00010072,2]
[348300360,1736437846355,-500.0,0.00010072,2]
[348300363,1736437846365,-500.0,0.00010072,2]
[348300364,1736437846373,-500.0,0.00010072,2]
[348300365,1736437846385,-500.0,0.00010072,2]
[348300366,1736437846395,-500.0,0.00010072,2]
[348300367,1736437846405,-500.0,0.00010072,2]
[348300368,1736437846416,-500.0,0.00010072,2]
[348300369,1736437846425,-500.0,0.00010072,2]
[348300370,1736437846435,-500.0,0.00010072,2]
[348300373,1736437846445,-500.0,0.00010072,2]
[348300374,1736437846455,-500.0,0.00010072,2]
[348300375,1736437846465,-197.27710209,0.00010072,2]
[348300376,1736437846474,-500.0,0.00010072,2]
[348300377,1736437846483,-500.0,0.00010072,2]
[348300378,1736437846492,-500.0,0.00010072,2]
[348300379,1736437846502,-500.0,0.00010072,2]
[348300380,1736437846511,-500.0,0.00010072,2]
[348300381,1736437846520,-500.0,0.00010072,2]
[348300382,1736437846529,-500.0,0.00010072,2]
[348300383,1736437846539,-500.0,0.00010072,2]
[348300384,1736437846548,-500.0,0.00010072,2]
[348300385,1736437846558,-500.0,0.00010072,2]
[348300386,1736437846568,-500.0,0.00010072,2]
[348300387,1736437846579,-500.0,0.00010072,2]
[348300388,1736437846588,-500.0,0.00010072,2]
[348300389,1736437846598,-458.31105258,0.00010072,2]
[348300390,1736437846607,-174.49265737,0.00010072,2]
[348300391,1736437846616,-500.0,0.00010072,2]
[348300392,1736437846625,-500.0,0.00010072,2]
[348300393,1736437846634,-500.0,0.00010072,2]
[348300394,1736437846643,-500.0,0.00010072,2]
[348300395,1736437846653,-500.0,0.00010072,2]
[348300396,1736437846662,-500.0,0.00010072,2]
[348300397,1736437846672,-500.0,0.00010072,2]
[348300398,1736437846682,-500.0,0.00010072,2]
[348300399,1736437846692,-500.0,0.00010072,2]
[348300400,1736437846702,-500.0,0.00010072,2]
[348300401,1736437846712,-500.0,0.00010072,2]
[348300402,1736437846723,-500.0,0.00010072,2]
[348300403,1736437846733,-500.0,0.00010072,2]
[348300404,1736437846747,-500.0,0.00010072,2]
[348300405,1736437846757,-2587.91,0.00010072,2]
[348300406,1736437846766,-500.0,0.00010072,2]
[348300407,1736437846775,-556.04,0.00010072,2]
[348300408,1736437846784,-500.0,0.00010072,2]
[348300409,1736437846793,-500.0,0.00010072,2]
[348300410,1736437846803,-500.0,0.00010072,2]
[348300411,1736437846812,-500.0,0.00010072,2]
[348300412,1736437846824,-500.0,0.00010072,2]
[348300413,1736437846833,-500.0,0.00010072,2]
[348300414,1736437846842,-7343.08,0.00010072,2]
[348300415,1736437846851,-500.0,0.00010072,2]
[348300416,1736437846861,-500.0,0.00010072,2]
[348300417,1736437846873,-500.0,0.00010072,2]
[348300418,1736437846883,-500.0,0.00010072,2]
[348300419,1736437846893,-4145.61,0.00010072,2]
[348300420,1736437846903,-500.0,0.00010072,2]
[348300421,1736437846913,-500.0,0.00010072,2]
[348300422,1736437846923,-1138.44,0.00010072,2]
[348300423,1736437846934,-2781.54,0.00010072,2]
[348300424,1736437846944,-500.0,0.00010072,2]
[348300425,1736437846954,-500.0,0.00010072,2]